[Event "*** Qualifier 2: Titled Tuesday 3|2 Blitz"]
[Site "Chess.com"]
[Date "2017.04.11"]
[Round "2"]
[White "dcremisi"]
[Black "nonscitis"]
[Result "1-0"]
[WhiteElo "2278"]
[BlackElo "2367"]
[TimeControl "180+2"]
[EndTime "13:20:01 PDT"]
[Termination "dcremisi won by checkmate"]

1. d4 {[%clk 0:03:02]} 1... Nf6 {[%clk 0:02:58.7]} 2. Nf3 {[%clk 0:03:01.9]}
2... e6 {[%clk 0:02:57.8]} 3. c4 {[%clk 0:03:02]} 3... Bb4+ {[%clk 0:02:53.5]}
4. Bd2 {[%clk 0:03:02.6]} 4... Qe7 {[%clk 0:02:53.8]} 5. g3 {[%clk 0:03:03.3]}
5... O-O {[%clk 0:02:52.7]} 6. Bg2 {[%clk 0:03:01.6]} 6... b6 {[%clk 0:02:51.2]}
7. O-O {[%clk 0:03:01.8]} 7... Bxd2 {[%clk 0:02:51]} 8. Qxd2 {[%clk 0:03:02.3]}
8... Bb7 {[%clk 0:02:52.5]} 9. Nc3 {[%clk 0:03:03.2]} 9... c5 {[%clk 0:02:47.4]}
10. d5 {[%clk 0:03:01.9]} 10... exd5 {[%clk 0:02:48]} 11. Nh4 {[%clk 0:03:03]}
11... g6 {[%clk 0:02:16.5]} 12. cxd5 {[%clk 0:02:51.5]} 12... d6 {[%clk
0:02:10.7]} 13. e4 {[%clk 0:02:51.1]} 13... Nbd7 {[%clk 0:02:10.7]} 14. f4
{[%clk 0:02:52]} 14... b5 {[%clk 0:01:53.5]} 15. e5 {[%clk 0:02:50.1]} 15... Ne8
{[%clk 0:01:40.3]} 16. Nxb5 {[%clk 0:02:43.9]} 16... a6 {[%clk 0:01:40.1]} 17.
Nc3 {[%clk 0:02:34.7]} 17... dxe5 {[%clk 0:01:39.4]} 18. d6 {[%clk 0:02:34.7]}
18... Nxd6 {[%clk 0:01:38.6]} 19. fxe5 {[%clk 0:02:27.4]} 19... Nxe5 {[%clk
0:01:32.7]} 20. Bxb7 {[%clk 0:02:24.3]} 20... Nxb7 {[%clk 0:01:31.1]} 21. Nd5
{[%clk 0:02:24.8]} 21... Qd8 {[%clk 0:01:22]} 22. Nf6+ {[%clk 0:02:24.4]} 22...
Kg7 {[%clk 0:01:15.6]} 23. Qg5 {[%clk 0:02:02.7]} 23... Qd4+ {[%clk 0:00:35.3]}
24. Kg2 {[%clk 0:01:58.9]} 24... Kh8 {[%clk 0:00:18.7]} 25. Qh6 {[%clk 0:01:55]}
25... Qxb2+ {[%clk 0:00:09.3]} 26. Rf2 {[%clk 0:01:55.9]} 26... Qxf2+ {[%clk
0:00:04.6]} 27. Kxf2 {[%clk 0:01:57.8]} 27... Ng4+ {[%clk 0:00:05.3]} 28. Nxg4
{[%clk 0:01:58.7]} 28... f6 {[%clk 0:00:04]} 29. Nxg6+ {[%clk 0:01:52.7]} 29...
Kg8 {[%clk 0:00:05.9]} 30. Nf4 {[%clk 0:01:52.1]} 30... Kf7 {[%clk 0:00:05.7]}
31. Qxf6+ {[%clk 0:01:52]} 31... Kg8 {[%clk 0:00:06.4]} 32. Nh6# {[%clk
0:01:51.6]} 1-0

[Event "*** Qualifier 2: Titled Tuesday 3|2 Blitz"]
[Site "Chess.com"]
[Date "2017.04.11"]
[Round "2"]
[White "Aygehovit1992"]
[Black "platy3"]
[Result "0-1"]
[WhiteElo "2437"]
[BlackElo "2653"]
[TimeControl "180+2"]
[EndTime "13:20:30 PDT"]
[Termination "platy3 won by resignation"]

1. e4 {[%clk 0:03:02]} 1... c5 {[%clk 0:02:56.5]} 2. Nf3 {[%clk 0:03:03.1]} 2...
d6 {[%clk 0:02:50.8]} 3. d4 {[%clk 0:03:04]} 3... cxd4 {[%clk 0:02:52.1]} 4.
Nxd4 {[%clk 0:03:05.9]} 4... Nf6 {[%clk 0:02:53.8]} 5. Nc3 {[%clk 0:03:07.6]}
5... a6 {[%clk 0:02:55.2]} 6. h3 {[%clk 0:03:09.1]} 6... e5 {[%clk 0:02:51.6]}
7. Nde2 {[%clk 0:03:10.1]} 7... h5 {[%clk 0:02:53]} 8. Ng1 {[%clk 0:03:10]} 8...
b5 {[%clk 0:02:50.1]} 9. Nf3 {[%clk 0:03:09.8]} 9... Bb7 {[%clk 0:02:51]} 10.
Bg5 {[%clk 0:03:09.5]} 10... Nbd7 {[%clk 0:02:47.7]} 11. Bd3 {[%clk 0:03:05]}
11... Nc5 {[%clk 0:02:46.7]} 12. O-O {[%clk 0:03:05]} 12... Be7 {[%clk
0:02:45.1]} 13. Bxf6 {[%clk 0:03:03]} 13... Bxf6 {[%clk 0:02:45.7]} 14. Nd5
{[%clk 0:03:04.4]} 14... Bxd5 {[%clk 0:02:31.1]} 15. exd5 {[%clk 0:03:06.3]}
15... O-O {[%clk 0:02:27.7]} 16. Re1 {[%clk 0:03:07.2]} 16... g6 {[%clk
0:02:28.6]} 17. Nd2 {[%clk 0:03:02.4]} 17... Bg7 {[%clk 0:02:27.9]} 18. b4
{[%clk 0:02:30]} 18... Na4 {[%clk 0:02:23.1]} 19. Qf3 {[%clk 0:02:29.7]} 19...
f5 {[%clk 0:02:21.3]} 20. Qg3 {[%clk 0:02:30.3]} 20... Kh7 {[%clk 0:02:10.6]}
21. Nf3 {[%clk 0:02:25.9]} 21... Bh6 {[%clk 0:02:07.3]} 22. h4 {[%clk
0:01:56.2]} 22... Bf4 {[%clk 0:01:59.3]} 23. Qh3 {[%clk 0:01:54.4]} 23... Rc8
{[%clk 0:01:53.4]} 24. g3 {[%clk 0:00:47.9]} 24... Bh6 {[%clk 0:01:51.9]} 25.
Nh2 {[%clk 0:00:17.7]} 25... Qb6 {[%clk 0:01:41.7]} 26. Nf1 {[%clk 0:00:15.6]}
26... e4 {[%clk 0:01:40.2]} 27. Be2 {[%clk 0:00:16.2]} 27... Rxc2 {[%clk
0:01:40.9]} 28. Qg2 {[%clk 0:00:12.2]} 28... Nc3 {[%clk 0:01:38.9]} 29. Bd1
{[%clk 0:00:13.5]} 29... Nxd1 {[%clk 0:01:33.6]} 30. Rexd1 {[%clk 0:00:14.2]}
30... e3 {[%clk 0:01:32.3]} 31. Kh1 {[%clk 0:00:05.1]} 31... Rxf2 {[%clk
0:01:32.1]} 32. Qh3 {[%clk 0:00:06.2]} 32... e2 {[%clk 0:01:32.6]} 0-1

[Event "*** Qualifier 2: Titled Tuesday 3|2 Blitz"]
[Site "Chess.com"]
[Date "2017.04.11"]
[Round "2"]
[White "XiaoKangZhong"]
[Black "woodhy"]
[Result "0-1"]
[WhiteElo "1926"]
[BlackElo "1969"]
[TimeControl "180+2"]
[EndTime "13:20:45 PDT"]
[Termination "woodhy won by resignation"]

1. e4 {[%clk 0:03:01.9]} 1... e6 {[%clk 0:02:57.5]} 2. d4 {[%clk 0:03:02.4]}
2... d5 {[%clk 0:02:59.4]} 3. Nd2 {[%clk 0:03:03.2]} 3... c5 {[%clk 0:03:00.3]}
4. exd5 {[%clk 0:03:00.7]} 4... exd5 {[%clk 0:03:02.2]} 5. Ngf3 {[%clk
0:02:59.7]} 5... Nc6 {[%clk 0:03:04.1]} 6. c3 {[%clk 0:02:57.8]} 6... cxd4
{[%clk 0:03:02.8]} 7. cxd4 {[%clk 0:02:58.4]} 7... Bd6 {[%clk 0:03:02.5]} 8. Bd3
{[%clk 0:02:58.5]} 8... Nge7 {[%clk 0:03:04.1]} 9. O-O {[%clk 0:02:58.9]} 9...
O-O {[%clk 0:03:05.7]} 10. Re1 {[%clk 0:02:59.7]} 10... Bf5 {[%clk 0:03:06.9]}
11. Bxf5 {[%clk 0:03:00.1]} 11... Nxf5 {[%clk 0:03:08.8]} 12. Nb3 {[%clk
0:02:57.3]} 12... a5 {[%clk 0:03:09.4]} 13. a4 {[%clk 0:02:56.2]} 13... Qb6
{[%clk 0:03:08.5]} 14. Be3 {[%clk 0:02:45.9]} 14... Rfe8 {[%clk 0:03:08.8]} 15.
Rb1 {[%clk 0:02:41.8]} 15... Bb4 {[%clk 0:03:05.4]} 16. Re2 {[%clk 0:02:40.7]}
16... Re7 {[%clk 0:03:06.3]} 17. Rc1 {[%clk 0:02:38.7]} 17... Rae8 {[%clk
0:03:06.5]} 18. Qd3 {[%clk 0:02:31]} 18... Bd6 {[%clk 0:02:59.1]} 19. Nc5 {[%clk
0:02:23.2]} 19... Qb4 {[%clk 0:02:52.1]} 20. Qxf5 {[%clk 0:02:06.2]} 20... Bxc5
{[%clk 0:02:42.4]} 21. dxc5 {[%clk 0:01:43.1]} 21... d4 {[%clk 0:02:43.8]} 22.
Rce1 {[%clk 0:01:30.9]} 22... dxe3 {[%clk 0:02:43.6]} 23. Rxe3 {[%clk
0:01:32.1]} 23... Rxe3 {[%clk 0:02:44.2]} 24. Rxe3 {[%clk 0:01:30.5]} 24... Rd8
{[%clk 0:02:40.1]} 25. Qc2 {[%clk 0:01:18.1]} 25... h6 {[%clk 0:02:26.1]} 26. h3
{[%clk 0:01:17.8]} 26... Qf4 {[%clk 0:02:19.2]} 27. Qb3 {[%clk 0:01:05.1]} 27...
Nb4 {[%clk 0:02:06.5]} 28. g3 {[%clk 0:00:52.2]} 28... Qf5 {[%clk 0:02:03]} 29.
Kg2 {[%clk 0:00:52.3]} 29... Qxc5 {[%clk 0:02:03.5]} 30. Rc3 {[%clk 0:00:51]}
30... Qd6 {[%clk 0:01:59.1]} 31. Qc4 {[%clk 0:00:49.2]} 31... Nd5 {[%clk
0:01:59.3]} 32. Rd3 {[%clk 0:00:49.7]} 32... Nf4+ {[%clk 0:02:00.4]} 33. gxf4
{[%clk 0:00:50.7]} 33... Qxd3 {[%clk 0:02:02.3]} 34. Qc7 {[%clk 0:00:50.2]}
34... Qd7 {[%clk 0:02:00.5]} 35. Qxa5 {[%clk 0:00:49.2]} 35... Re8 {[%clk
0:01:58.9]} 36. Qb4 {[%clk 0:00:48]} 36... Qc6 {[%clk 0:01:57.3]} 37. b3 {[%clk
0:00:47.2]} 37... Re4 {[%clk 0:01:58.1]} 38. Qd2 {[%clk 0:00:47]} 38... Qc7
{[%clk 0:01:55.2]} 39. Ne5 {[%clk 0:00:37.7]} 39... Qc8 {[%clk 0:01:39.7]} 40.
Kf3 {[%clk 0:00:24.9]} 40... Qf5 {[%clk 0:01:37.3]} 41. Qd5 {[%clk 0:00:19.9]}
41... Qxf4+ {[%clk 0:01:36.1]} 42. Kg2 {[%clk 0:00:20.7]} 42... Rxe5 {[%clk
0:01:37.3]} 43. Qd8+ {[%clk 0:00:21.6]} 43... Kh7 {[%clk 0:01:38]} 0-1

[Event "*** Qualifier 2: Titled Tuesday 3|2 Blitz"]
[Site "Chess.com"]
[Date "2017.04.11"]
[Round "2"]
[White "DiogenesSinopeus"]
[Black "rubhani"]
[Result "1-0"]
[WhiteElo "2274"]
[BlackElo "2380"]
[TimeControl "180+2"]
[EndTime "13:20:53 PDT"]
[Termination "DiogenesSinopeus won by resignation"]

1. d4 {[%clk 0:03:02]} 1... Nf6 {[%clk 0:03:00.3]} 2. c4 {[%clk 0:03:03.2]} 2...
e6 {[%clk 0:03:01.2]} 3. Nc3 {[%clk 0:03:04.3]} 3... Bb4 {[%clk 0:03:02.1]} 4.
e3 {[%clk 0:03:04.5]} 4... O-O {[%clk 0:03:02.4]} 5. Bd3 {[%clk 0:03:05.5]} 5...
d5 {[%clk 0:03:02.9]} 6. a3 {[%clk 0:03:07]} 6... Bxc3+ {[%clk 0:02:59.9]} 7.
bxc3 {[%clk 0:03:08.9]} 7... c5 {[%clk 0:03:01]} 8. cxd5 {[%clk 0:03:10.1]} 8...
exd5 {[%clk 0:02:56.9]} 9. Ne2 {[%clk 0:03:11.3]} 9... Nc6 {[%clk 0:02:57.8]}
10. O-O {[%clk 0:03:11.8]} 10... b6 {[%clk 0:02:58]} 11. f3 {[%clk 0:03:13.2]}
11... a5 {[%clk 0:02:47.9]} 12. Ng3 {[%clk 0:03:05.9]} 12... Ba6 {[%clk
0:02:47.1]} 13. Bxa6 {[%clk 0:02:55.2]} 13... Rxa6 {[%clk 0:02:48]} 14. Qd3
{[%clk 0:02:56.1]} 14... Ra8 {[%clk 0:02:47.2]} 15. Bb2 {[%clk 0:02:51.5]} 15...
a4 {[%clk 0:02:44.2]} 16. e4 {[%clk 0:02:47.4]} 16... Na5 {[%clk 0:02:38.3]} 17.
Rae1 {[%clk 0:02:36]} 17... Nc4 {[%clk 0:02:38.5]} 18. Bc1 {[%clk 0:02:36.1]}
18... cxd4 {[%clk 0:02:32.7]} 19. cxd4 {[%clk 0:02:36.7]} 19... Ra5 {[%clk
0:02:27.9]} 20. e5 {[%clk 0:02:37.9]} 20... Nd7 {[%clk 0:02:28.5]} 21. f4 {[%clk
0:02:39.1]} 21... Rb5 {[%clk 0:02:29.6]} 22. f5 {[%clk 0:02:32]} 22... Rb3
{[%clk 0:02:30.2]} 23. Qd1 {[%clk 0:02:18.8]} 23... Re8 {[%clk 0:02:15.2]} 24.
f6 {[%clk 0:02:00.4]} 24... b5 {[%clk 0:01:39.1]} 25. Nf5 {[%clk 0:01:38.2]}
25... g6 {[%clk 0:01:08.5]} 26. Qg4 {[%clk 0:01:15.9]} 26... h5 {[%clk
0:00:24.9]} 27. Qg5 {[%clk 0:01:11]} 27... Nf8 {[%clk 0:00:06.5]} 28. Nh6+
{[%clk 0:00:49.1]} 28... Kh7 {[%clk 0:00:07.6]} 29. Nxf7 {[%clk 0:00:50.4]}
29... Ne6 {[%clk 0:00:08.4]} 30. Qh6+ {[%clk 0:00:49.5]} 1-0

[Event "*** Qualifier 2: Titled Tuesday 3|2 Blitz"]
[Site "Chess.com"]
[Date "2017.04.11"]
[Round "2"]
[White "ViIIagra"]
[Black "FairChess_on_YouTube"]
[Result "0-1"]
[WhiteElo "2490"]
[BlackElo "2720"]
[TimeControl "180+2"]
[EndTime "13:20:54 PDT"]
[Termination "FairChess_on_YouTube won by resignation"]

1. e4 {[%clk 0:02:59.4]} 1... c6 {[%clk 0:02:59]} 2. d4 {[%clk 0:02:57.8]} 2...
d5 {[%clk 0:02:59.7]} 3. e5 {[%clk 0:02:59.4]} 3... Bf5 {[%clk 0:02:59.6]} 4. h4
{[%clk 0:03:00.5]} 4... h5 {[%clk 0:02:59]} 5. Nf3 {[%clk 0:03:00.2]} 5... e6
{[%clk 0:02:59.1]} 6. Bd3 {[%clk 0:03:01.7]} 6... Bg4 {[%clk 0:02:57.8]} 7. c3
{[%clk 0:02:46.7]} 7... c5 {[%clk 0:02:57]} 8. Be3 {[%clk 0:02:35.4]} 8... Nc6
{[%clk 0:02:54.6]} 9. Nbd2 {[%clk 0:02:35.6]} 9... cxd4 {[%clk 0:02:50]} 10.
cxd4 {[%clk 0:02:33.9]} 10... Bb4 {[%clk 0:02:44.1]} 11. Be2 {[%clk 0:02:05]}
11... Nge7 {[%clk 0:02:43]} 12. a3 {[%clk 0:02:05.7]} 12... Ba5 {[%clk
0:02:42.5]} 13. b4 {[%clk 0:02:04.2]} 13... Bb6 {[%clk 0:02:43.5]} 14. Nb3
{[%clk 0:02:05.6]} 14... Nf5 {[%clk 0:02:42.7]} 15. Qd2 {[%clk 0:01:57.2]} 15...
a5 {[%clk 0:02:31.5]} 16. b5 {[%clk 0:01:57.2]} 16... a4 {[%clk 0:02:31.8]} 17.
bxc6 {[%clk 0:01:36.2]} 17... axb3 {[%clk 0:02:31.7]} 18. Qb2 {[%clk 0:01:25.4]}
18... bxc6 {[%clk 0:02:27.2]} 19. Qxb3 {[%clk 0:01:26.1]} 19... Bxf3 {[%clk
0:02:24.6]} 20. Bxf3 {[%clk 0:01:26.8]} 20... Bxd4 {[%clk 0:02:25.3]} 21. Bxd4
{[%clk 0:01:18.9]} 21... Nxd4 {[%clk 0:02:27.2]} 22. Qc3 {[%clk 0:01:20.6]}
22... Qa5 {[%clk 0:02:20.1]} 23. Qxa5 {[%clk 0:01:19.1]} 23... Rxa5 {[%clk
0:02:22]} 24. Bd1 {[%clk 0:01:20.3]} 24... O-O {[%clk 0:02:14.6]} 25. Rh3 {[%clk
0:01:21.6]} 25... Rb8 {[%clk 0:02:09.8]} 26. Kf1 {[%clk 0:01:03.9]} 26... g6
{[%clk 0:02:06.3]} 27. g4 {[%clk 0:01:03.4]} 27... hxg4 {[%clk 0:02:05.2]} 28.
Bxg4 {[%clk 0:01:05.3]} 28... Ra4 {[%clk 0:01:58.3]} 29. Bd1 {[%clk 0:01:03.3]}
29... Ra7 {[%clk 0:01:54.5]} 30. h5 {[%clk 0:00:58.7]} 30... Kg7 {[%clk
0:01:51.8]} 31. hxg6 {[%clk 0:00:54.3]} 31... fxg6 {[%clk 0:01:53.7]} 32. a4
{[%clk 0:00:55.9]} 32... c5 {[%clk 0:01:54]} 33. Rg3 {[%clk 0:00:47.9]} 33...
Nf5 {[%clk 0:01:44.6]} 34. Rga3 {[%clk 0:00:45.6]} 34... c4 {[%clk 0:01:39]} 35.
a5 {[%clk 0:00:46.6]} 35... Ra6 {[%clk 0:01:39.9]} 36. Bg4 {[%clk 0:00:41.7]}
36... Nd4 {[%clk 0:01:39.5]} 37. Rd1 {[%clk 0:00:38.4]} 37... Nb3 {[%clk
0:01:33]} 38. Ke1 {[%clk 0:00:33.9]} 38... c3 {[%clk 0:01:24.8]} 39. Ra2 {[%clk
0:00:29.6]} 39... Rxa5 {[%clk 0:01:20.7]} 40. Rxa5 {[%clk 0:00:30.4]} 40... Nxa5
{[%clk 0:01:22.6]} 0-1

[Event "*** Qualifier 2: Titled Tuesday 3|2 Blitz"]
[Site "Chess.com"]
[Date "2017.04.11"]
[Round "2"]
[White "Zhani-Z"]
[Black "gmcorrales"]
[Result "0-1"]
[WhiteElo "2418"]
[BlackElo "2616"]
[TimeControl "180+2"]
[EndTime "13:20:55 PDT"]
[Termination "gmcorrales won on time"]

1. e4 {[%clk 0:03:02]} 1... c5 {[%clk 0:02:58.8]} 2. Nf3 {[%clk 0:03:01.5]} 2...
Nc6 {[%clk 0:02:58.2]} 3. d4 {[%clk 0:03:01.9]} 3... cxd4 {[%clk 0:03:00.1]} 4.
Nxd4 {[%clk 0:03:03.5]} 4... Nf6 {[%clk 0:03:01.6]} 5. Nc3 {[%clk 0:03:04.2]}
5... e5 {[%clk 0:03:02.7]} 6. Ndb5 {[%clk 0:03:05.5]} 6... d6 {[%clk 0:03:04]}
7. Bg5 {[%clk 0:03:07.1]} 7... a6 {[%clk 0:03:05.1]} 8. Na3 {[%clk 0:03:08.7]}
8... b5 {[%clk 0:03:06]} 9. Nd5 {[%clk 0:03:09.7]} 9... Be7 {[%clk 0:03:05.8]}
10. Bxf6 {[%clk 0:03:11.2]} 10... Bxf6 {[%clk 0:03:07.7]} 11. c4 {[%clk
0:03:12.7]} 11... b4 {[%clk 0:03:07.7]} 12. Nc2 {[%clk 0:03:14]} 12... a5 {[%clk
0:03:07.4]} 13. Qf3 {[%clk 0:03:13.8]} 13... Bg5 {[%clk 0:03:02]} 14. h4 {[%clk
0:03:13.8]} 14... Be7 {[%clk 0:02:56.3]} 15. Rd1 {[%clk 0:03:11.2]} 15... O-O
{[%clk 0:02:39.5]} 16. c5 {[%clk 0:03:00.9]} 16... Be6 {[%clk 0:02:07.6]} 17.
Nxe7+ {[%clk 0:02:02.8]} 17... Qxe7 {[%clk 0:02:09.5]} 18. Rxd6 {[%clk
0:01:49.7]} 18... Rfc8 {[%clk 0:02:05.7]} 19. b3 {[%clk 0:01:10.5]} 19... a4
{[%clk 0:01:58]} 20. Bb5 {[%clk 0:01:04.8]} 20... axb3 {[%clk 0:01:58.5]} 21.
axb3 {[%clk 0:01:05.2]} 21... Nd4 {[%clk 0:01:58.8]} 22. Nxd4 {[%clk 0:00:57.6]}
22... Ra1+ {[%clk 0:01:47.9]} 23. Ke2 {[%clk 0:00:55.4]} 23... Ra2+ {[%clk
0:01:47.8]} 24. Kd3 {[%clk 0:00:39.7]} 24... exd4 {[%clk 0:01:46.7]} 25. Rc1
{[%clk 0:00:16.3]} 25... Rb2 {[%clk 0:01:26.7]} 26. Kxd4 {[%clk 0:00:14.6]}
26... Rxb3 {[%clk 0:01:06.2]} 27. Qf4 {[%clk 0:00:14.3]} 27... Qa7 {[%clk
0:00:57.6]} 28. h5 {[%clk 0:00:10.8]} 28... Qa3 {[%clk 0:00:55.2]} 29. h6 {[%clk
0:00:10.1]} 29... Qb2+ {[%clk 0:00:55.4]} 0-1

[Event "*** Qualifier 2: Titled Tuesday 3|2 Blitz"]
[Site "Chess.com"]
[Date "2017.04.11"]
[Round "2"]
[White "jcibarra"]
[Black "GMMelik"]
[Result "1-0"]
[WhiteElo "2656"]
[BlackElo "2499"]
[TimeControl "180+2"]
[EndTime "13:21:01 PDT"]
[Termination "jcibarra won by checkmate"]

1. e4 {[%clk 0:03:02]} 1... e5 {[%clk 0:02:58.7]} 2. Nf3 {[%clk 0:03:01.7]} 2...
Nc6 {[%clk 0:02:59.9]} 3. Bb5 {[%clk 0:03:03.3]} 3... f5 {[%clk 0:03:01.1]} 4.
Nc3 {[%clk 0:03:02.6]} 4... fxe4 {[%clk 0:03:02.2]} 5. Nxe4 {[%clk 0:03:04]}
5... Nf6 {[%clk 0:03:03.5]} 6. Bxc6 {[%clk 0:03:02.9]} 6... dxc6 {[%clk
0:02:59.5]} 7. Qe2 {[%clk 0:03:03.3]} 7... Bg4 {[%clk 0:02:56.3]} 8. h3 {[%clk
0:03:03.6]} 8... Bh5 {[%clk 0:02:55.2]} 9. d3 {[%clk 0:02:59.7]} 9... Bb4+
{[%clk 0:02:31.1]} 10. Bd2 {[%clk 0:02:56.7]} 10... Bxf3 {[%clk 0:02:22.8]} 11.
Qxf3 {[%clk 0:02:54.7]} 11... Bxd2+ {[%clk 0:02:23.9]} 12. Nxd2 {[%clk
0:02:55.9]} 12... Qd4 {[%clk 0:02:22.6]} 13. O-O-O {[%clk 0:02:55.2]} 13... O-O
{[%clk 0:02:18.2]} 14. Nb3 {[%clk 0:02:44.4]} 14... Qa4 {[%clk 0:02:10.9]} 15.
Kb1 {[%clk 0:02:42.7]} 15... Nd5 {[%clk 0:02:11.5]} 16. Qe4 {[%clk 0:02:38.2]}
16... Qxe4 {[%clk 0:02:06.5]} 17. dxe4 {[%clk 0:02:40.1]} 17... Nf4 {[%clk
0:02:08]} 18. Rhg1 {[%clk 0:02:35]} 18... Rad8 {[%clk 0:01:55.2]} 19. Rxd8
{[%clk 0:02:31.9]} 19... Rxd8 {[%clk 0:01:55.5]} 20. h4 {[%clk 0:02:33.8]} 20...
b6 {[%clk 0:01:33.9]} 21. g3 {[%clk 0:02:34.9]} 21... Nh3 {[%clk 0:01:15.7]} 22.
Rf1 {[%clk 0:02:35.6]} 22... Rf8 {[%clk 0:01:15.5]} 23. f3 {[%clk 0:02:36.1]}
23... g5 {[%clk 0:01:17]} 24. hxg5 {[%clk 0:02:35.9]} 24... Nxg5 {[%clk
0:01:17.9]} 25. Nd2 {[%clk 0:02:37.5]} 25... Kg7 {[%clk 0:01:14.8]} 26. c3
{[%clk 0:02:37]} 26... c5 {[%clk 0:01:09.8]} 27. Kc2 {[%clk 0:02:38.3]} 27... b5
{[%clk 0:01:09.8]} 28. Kd3 {[%clk 0:02:39.6]} 28... c4+ {[%clk 0:01:07.7]} 29.
Ke3 {[%clk 0:02:40.3]} 29... Rd8 {[%clk 0:01:08.8]} 30. Ke2 {[%clk 0:02:38.3]}
30... a6 {[%clk 0:01:04.7]} 31. a4 {[%clk 0:02:38.8]} 31... c6 {[%clk
0:01:03.9]} 32. Ra1 {[%clk 0:02:37.1]} 32... Rd6 {[%clk 0:01:04.5]} 33. f4
{[%clk 0:02:32.5]} 33... exf4 {[%clk 0:01:04.4]} 34. gxf4 {[%clk 0:02:34.4]}
34... Ne6 {[%clk 0:01:05.3]} 35. Rf1 {[%clk 0:02:32]} 35... Nc5 {[%clk
0:01:05.8]} 36. f5 {[%clk 0:02:30.4]} 36... Kf6 {[%clk 0:00:55]} 37. axb5 {[%clk
0:02:25.4]} 37... cxb5 {[%clk 0:00:55.6]} 38. Rh1 {[%clk 0:02:24.2]} 38... Rd7
{[%clk 0:00:31.1]} 39. Rh4 {[%clk 0:02:09.1]} 39... Ke5 {[%clk 0:00:31.7]} 40.
Nf3+ {[%clk 0:02:08.4]} 40... Kf6 {[%clk 0:00:32.1]} 41. Ke3 {[%clk 0:02:07.3]}
41... Rd3+ {[%clk 0:00:32.5]} 42. Kf4 {[%clk 0:02:08.6]} 42... Rd1 {[%clk
0:00:23]} 43. Rxh7 {[%clk 0:02:09.3]} 43... Nd3+ {[%clk 0:00:23.5]} 44. Ke3
{[%clk 0:02:10.3]} 44... Nxb2 {[%clk 0:00:22.1]} 45. Rh6+ {[%clk 0:02:11.3]}
45... Kg7 {[%clk 0:00:22.5]} 46. Rg6+ {[%clk 0:02:12.5]} 46... Kf8 {[%clk
0:00:22.9]} 47. Rxa6 {[%clk 0:02:08.8]} 47... Rd3+ {[%clk 0:00:24]} 48. Kf4
{[%clk 0:02:09.5]} 48... Rxc3 {[%clk 0:00:25.9]} 49. Ra8+ {[%clk 0:02:09.8]}
49... Ke7 {[%clk 0:00:26.3]} 50. Ra7+ {[%clk 0:02:10.8]} 50... Ke8 {[%clk
0:00:25.9]} 51. f6 {[%clk 0:02:10.3]} 51... Nd3+ {[%clk 0:00:25.7]} 52. Kf5
{[%clk 0:02:10.3]} 52... Nc5 {[%clk 0:00:26.8]} 53. Ne5 {[%clk 0:02:08.6]} 53...
Rg3 {[%clk 0:00:16.4]} 54. Ra8# {[%clk 0:02:09.1]} 1-0

[Event "*** Qualifier 2: Titled Tuesday 3|2 Blitz"]
[Site "Chess.com"]
[Date "2017.04.11"]
[Round "2"]
[White "igorkovalenko"]
[Black "afgano29"]
[Result "1-0"]
[WhiteElo "2655"]
[BlackElo "2377"]
[TimeControl "180+2"]
[EndTime "13:21:01 PDT"]
[Termination "igorkovalenko won by resignation"]

1. c4 {[%clk 0:03:02]} 1... Nf6 {[%clk 0:03:00.2]} 2. Nc3 {[%clk 0:03:02.5]}
2... d5 {[%clk 0:03:00.6]} 3. cxd5 {[%clk 0:03:03.5]} 3... Nxd5 {[%clk
0:03:02.5]} 4. Nf3 {[%clk 0:03:05]} 4... g6 {[%clk 0:03:02.2]} 5. e4 {[%clk
0:03:06.1]} 5... Nxc3 {[%clk 0:03:03.1]} 6. dxc3 {[%clk 0:03:08]} 6... Qxd1+
{[%clk 0:03:03]} 7. Kxd1 {[%clk 0:03:09.9]} 7... f6 {[%clk 0:03:04.3]} 8. Kc2
{[%clk 0:03:09.8]} 8... e5 {[%clk 0:03:02]} 9. Be3 {[%clk 0:03:09.6]} 9... Nd7
{[%clk 0:03:01.8]} 10. Rd1 {[%clk 0:03:05.6]} 10... Bd6 {[%clk 0:02:45.8]} 11.
Bc4 {[%clk 0:02:59.8]} 11... Nc5 {[%clk 0:02:43.1]} 12. Nd2 {[%clk 0:02:57.6]}
12... Ke7 {[%clk 0:02:42.2]} 13. b4 {[%clk 0:02:54.1]} 13... Nd7 {[%clk
0:02:37.2]} 14. h4 {[%clk 0:02:39.1]} 14... a5 {[%clk 0:02:35.9]} 15. a3 {[%clk
0:02:39.2]} 15... h5 {[%clk 0:02:33.3]} 16. f3 {[%clk 0:02:39.1]} 16... Nb6
{[%clk 0:02:25.7]} 17. Bxb6 {[%clk 0:02:37.5]} 17... cxb6 {[%clk 0:02:27.6]} 18.
Bd5 {[%clk 0:02:38.8]} 18... axb4 {[%clk 0:02:27.5]} 19. axb4 {[%clk 0:02:39.9]}
19... b5 {[%clk 0:02:25.5]} 20. Ra1 {[%clk 0:02:38.3]} 20... Ra6 {[%clk
0:02:21.4]} 21. Nb3 {[%clk 0:02:31.9]} 21... g5 {[%clk 0:02:18.3]} 22. Ra5
{[%clk 0:02:10.8]} 22... g4 {[%clk 0:01:51.3]} 23. Kd3 {[%clk 0:02:04.3]} 23...
Rxa5 {[%clk 0:01:32.6]} 24. Nxa5 {[%clk 0:02:05.3]} 24... Bc7 {[%clk 0:01:20]}
25. Nxb7 {[%clk 0:01:59]} 25... gxf3 {[%clk 0:01:09.4]} 26. gxf3 {[%clk
0:01:59.8]} 26... Bxb7 {[%clk 0:00:33.2]} 27. Bxb7 {[%clk 0:02:01.7]} 27... Rg8
{[%clk 0:00:34.6]} 28. Bc6 {[%clk 0:01:51.5]} 28... Rg3 {[%clk 0:00:34.9]} 29.
Rf1 {[%clk 0:01:50.9]} 29... Rh3 {[%clk 0:00:35.2]} 30. Bxb5 {[%clk 0:01:52.1]}
30... Rxh4 {[%clk 0:00:36.5]} 31. Ba6 {[%clk 0:01:47.4]} 31... Rh2 {[%clk
0:00:35.4]} 32. Bc8 {[%clk 0:01:47.8]} 32... Bb6 {[%clk 0:00:33.6]} 33. Bf5
{[%clk 0:01:44.9]} 33... h4 {[%clk 0:00:31.2]} 34. Bg4 {[%clk 0:01:39.1]} 34...
Kd6 {[%clk 0:00:28.9]} 35. Kc4 {[%clk 0:01:40.2]} 35... Be3 {[%clk 0:00:27.4]}
36. Ra1 {[%clk 0:01:38.7]} 36... Rf2 {[%clk 0:00:19.5]} 37. Rh1 {[%clk
0:01:26.5]} 37... Bg5 {[%clk 0:00:19.4]} 38. Kb5 {[%clk 0:01:25.9]} 38... Rb2
{[%clk 0:00:18.8]} 39. Ra1 {[%clk 0:01:22.7]} 39... Bd2 {[%clk 0:00:17.3]} 40.
Ra7 {[%clk 0:01:23.7]} 1-0